bitfinex/quotes_ETHUSD_20251021
["timestamp","ask_amount","ask_price","bid_price","bid_amount"]
[1761013972357,0.4721,3945.1,3945.0,5.78985424]
[1761013974344,0.001,3945.1,3945.0,5.78985424]
[1761013974551,0.001,3945.1,3945.0,2.53685424]
[1761013974752,0.4721,3945.1,3945.0,5.78985424]
[1761013976145,0.001,3945.1,3945.0,5.78985424]
[1761013980252,0.4721,3945.1,3945.0,3.254]
[1761013980975,0.4721,3945.1,3945.0,5.78885424]
[1761013981382,0.001,3945.1,3945.0,5.78885424]
[1761013981755,0.4386,3945.1,3945.0,5.78885424]
[1761013983060,0.4386,3945.1,3945.0,2.53685424]
[1761013983268,0.4386,3945.1,3945.0,5.78885424]
[1761013986061,0.4386,3945.1,3945.0,0.002]
[1761013986268,0.4386,3945.1,3945.0,3.254]
[1761013987485,0.4386,3945.1,3945.0,0.002]
[1761013987800,0.565,3945.1,3945.0,3.254]
[1761013989666,0.001,3945.1,3945.0,5.78885424]
[1761013990262,0.4386,3945.1,3945.0,5.78885424]
[1761013992178,0.001,3945.1,3945.0,5.78885424]
[1761013992916,0.001,3945.1,3945.0,6.21095424]
[1761013993202,0.001,3945.1,3945.0,6.33735424]
[1761013995274,0.001,3945.1,3945.0,8.28759631]
[1761013995673,0.001,3945.1,3945.0,10.01559631]
[1761013996910,0.001,3945.1,3945.0,8.02373424]
[1761013997900,0.001,3945.1,3945.0,6.71783424]
[1761013998101,0.001,3945.1,3945.0,6.29573424]
[1761013998300,0.001,3945.1,3945.0,6.71783424]
[1761013999093,0.001,3945.1,3945.0,6.29573424]
[1761013999877,0.001,3945.1,3945.0,5.78785424]
[1761014000819,0.001,3945.1,3945.0,7.44541936]
[1761014002627,0.001,3945.1,3945.0,9.17341936]
[1761014003309,0.001,3945.1,3945.0,9.42751936]
[1761014003608,0.2264,3948.0,3945.0,9.42751936]
[1761014003806,0.2264,3948.0,3946.9,2.53363399]
[1761014004029,0.4746,3947.1,3946.9,5.80997032]
[1761014004192,0.6969,3947.0,3946.9,5.78463399]
[1761014005689,0.2359,3947.3,3947.2,2.53338726]
[1761014005881,0.2359,3947.3,3946.9,3.251]
[1761014006077,0.4746,3947.2,3945.8,0.50688]
[1761014006303,0.4746,3947.2,3946.7,2.53371373]
[1761014006509,0.4746,3947.2,3946.8,3.251]
[1761014006812,0.3623,3946.8,3946.2,2.53401927]
[1761014007014,0.3623,3946.8,3946.3,5.78501168]
[1761014007179,0.4746,3946.7,3946.3,5.78501168]
[1761014007384,0.4746,3946.7,3946.4,2.53395401]
[1761014007579,0.4746,3946.7,3946.3,3.251]
[1761014007883,0.4746,3946.7,3946.4,3.25]
[1761014008912,0.4746,3946.6,3946.5,2.53383421]
[1761014009789,0.4746,3946.6,3946.4,5.78395389]
[1761014009992,0.4746,3946.6,3946.5,2.53389078]
[1761014010329,0.4756,3946.6,3946.5,2.53389078]
[1761014011019,0.001,3946.6,3946.5,2.53389078]
[1761014011225,0.4562,3946.6,3946.4,5.78393927]
[1761014011425,0.4562,3946.6,3946.4,3.25]
[1761014011994,0.4562,3946.6,3946.4,5.78395112]
[1761014012431,0.4562,3946.6,3946.4,3.25]
[1761014012861,0.4562,3946.6,3946.4,5.7839386]
[1761014014009,0.4562,3946.6,3946.4,3.25]
[1761014014631,0.4562,3946.6,3946.1,2.66053113]
[1761014014632,0.4562,3946.6,3946.1,0.1264]
[1761014014833,0.4562,3946.6,3946.2,3.25]
[1761014015235,0.4562,3946.6,3946.1,0.1264]
[1761014015417,0.1264,3946.4,3946.1,3.25]
[1761014015902,0.1264,3946.4,3945.2,2.53467981]
[1761014015903,0.4552,3946.3,3946.0,3.25]
[1761014016109,0.1264,3946.1,3946.0,3.25]
[1761014016667,0.5816,3946.1,3946.0,3.25]
[1761014017053,0.001,3946.6,3946.2,2.5340735]
[1761014017054,0.4552,3946.4,3946.2,2.5340735]
[1761014017256,0.1264,3946.4,3946.3,2.5340192]
[1761014017573,0.001,3946.6,3946.5,2.53389078]
[1761014017780,0.4562,3946.6,3946.4,2.53390859]
[1761014018233,0.4562,3946.6,3946.3,5.78399823]
[1761014018865,0.4562,3946.6,3946.3,3.25]
[1761014019667,0.4562,3946.6,3946.3,5.78401701]
[1761014020165,0.4562,3946.6,3946.0,2.66055741]
[1761014020379,0.4562,3946.6,3946.1,5.78314502]
[1761014020570,0.1264,3946.5,3946.1,5.78314502]
[1761014020958,0.4552,3946.4,3946.1,5.78314502]
[1761014021357,0.4552,3946.4,3945.8,0.1264]
[1761014021573,0.2209,3945.9,3945.7,2.53435551]
[1761014021866,0.2209,3945.9,3945.6,2.53445019]
[1761014022039,0.2209,3945.9,3945.8,3.249]
[1761014022646,0.6761,3945.9,3945.8,3.249]
[1761014023839,0.6761,3945.9,3945.5,0.1264]
[1761014024039,0.4552,3945.8,3945.7,2.53439386]
[1761014024655,0.4552,3945.8,3945.6,5.78346835]
[1761014025054,0.4552,3945.8,3945.7,3.249]
[1761014025496,0.4552,3945.8,3945.7,5.78340454]
[1761014027690,0.4552,3945.8,3945.7,3.249]
[1761014028581,0.4552,3945.8,3945.7,5.78340454]
[1761014029698,0.4552,3945.8,3945.7,3.249]
[1761014031879,0.4552,3945.8,3945.7,5.78340454]
[1761014033711,0.4552,3945.8,3945.7,3.249]
[1761014034012,0.4552,3945.8,3945.7,5.78340454]
[1761014034909,0.1264,3945.9,3945.8,2.53434031]
[1761014040433,0.001,3946.6,3946.1,2.53409917]
[1761014040598,0.4304,3946.5,3946.2,3.248]
[1761014042432,0.4304,3946.5,3945.2,5.05549338]
[1761014042433,0.4304,3946.5,3945.9,2.53426875]
[1761014042630,0.4304,3946.5,3945.9,3.248]
[1761014042803,0.21594,3946.4,3945.9,3.248]
[1761014043127,0.21594,3946.4,3945.9,5.78225338]
[1761014043310,0.4304,3946.3,3945.9,5.78225338]
[1761014044535,0.4304,3946.3,3945.9,3.248]
[1761014044701,0.4304,3946.3,3945.9,5.78227395]
[1761014045330,0.4304,3946.3,3946.0,2.5342007]
[1761014045529,0.4304,3946.3,3945.9,3.248]
[1761014046743,0.4304,3946.3,3945.8,2.53431909]
[1761014046948,0.2367,3945.9,3945.8,2.53431909]
[1761014047344,0.6671,3945.9,3945.8,2.53431909]
[1761014047517,0.6671,3945.9,3945.6,0.002]
[1761014047719,0.4304,3945.8,3945.6,0.002]
[1761014048849,0.75052516,3945.8,3945.6,0.002]
[1761014049017,0.4304,3945.8,3945.6,0.002]
[1761014049225,0.2367,3945.9,3945.6,0.002]
[1761014049226,0.4304,3945.7,3945.6,0.002]
[1761014050015,2.1584,3945.7,3945.6,0.002]
[1761014050270,17.44370654,3945.7,3945.6,0.002]
[1761014050494,31.26721054,3945.7,3945.6,0.002]
[1761014050751,21.42215231,3945.7,3945.6,0.002]
[1761014051053,12.18825177,3945.7,3945.6,0.002]
[1761014051270,1.728,3945.7,3945.6,0.002]
[1761014051416,0.1264,3945.7,3945.6,2.53646877]
[1761014051614,0.001,3946.4,3946.2,2.53408006]
[1761014051928,0.001,3946.4,3946.0,5.78220811]
[1761014052257,0.4314,3946.4,3945.7,3.248]
[1761014052833,0.30104809,3946.3,3945.7,3.248]
[1761014053032,0.2367,3945.8,3945.7,3.248]
[1761014053241,0.2367,3945.8,3945.6,0.002]
[1761014053444,0.4304,3945.7,3945.6,0.002]
[1761014054448,0.2367,3945.8,3945.6,0.002]
[1761014054624,0.6671,3945.8,3945.6,0.002]
[1761014055129,0.4304,3945.7,3945.6,0.002]
[1761014059529,0.4699,3945.7,3945.6,0.002]
[1761014059966,0.71336,3945.7,3945.6,0.002]
[1761014060332,0.4699,3945.7,3945.6,0.002]
[1761014061350,0.4699,3946.1,3945.6,0.002]
[1761014062162,0.39751417,3946.3,3945.6,0.002]
[1761014062324,0.4699,3946.1,3945.6,0.002]
[1761014062724,0.2234,3945.7,3945.6,0.002]
[1761014063130,0.6933,3945.7,3945.6,0.002]
[1761014064932,0.2234,3945.7,3945.6,0.002]
[1761014065341,0.2234,3945.9,3945.6,0.002]
[1761014065763,0.6933,3945.9,3945.6,0.002]
[1761014066261,0.96544754,3945.8,3945.6,0.002]
[1761014066760,0.4699,3945.7,3945.6,0.002]
[1761014069867,0.6933,3945.9,3945.6,0.002]
[1761014070246,0.4699,3945.8,3945.6,0.002]
[1761014076573,0.2234,3945.9,3945.6,0.002]
[1761014076976,0.4369,3945.8,3945.6,0.002]
[1761014080184,0.27858241,3945.8,3945.6,0.002]
[1761014082972,0.2251,3945.7,3945.6,0.002]
[1761014083500,0.662,3945.7,3945.6,0.002]
[1761014083998,0.27858241,3945.8,3945.6,0.002]
[1761014087476,0.71548241,3945.8,3945.6,0.002]
[1761014088297,0.27858241,3945.8,3945.6,0.002]
[1761014088615,0.2261,3945.9,3945.8,2.53434031]
[1761014088616,0.001,3945.9,3945.8,2.53434031]
[1761014088814,0.001,3945.9,3945.8,2.55968371]
[1761014089022,0.001,3945.9,3945.8,2.95644031]
[1761014089581,0.001,3945.9,3945.8,5.77934031]
[1761014089777,0.001,3945.9,3945.8,3.245]
[1761014090118,0.001,3945.9,3945.8,6.58099031]
[1761014090818,0.001,3945.9,3945.8,6.15889031]
[1761014091520,0.001,3945.9,3945.8,6.58099031]
[1761014093513,0.001,3945.9,3945.8,6.57999031]
[1761014098118,0.001,3945.9,3945.8,7.46737031]
[1761014098788,0.001,3945.9,3945.8,9.19537031]
[1761014099295,0.001,3945.9,3945.8,7.46737031]
[1761014100329,0.001,3945.9,3945.8,7.21327031]
[1761014101090,0.001,3945.9,3945.8,7.21527031]
[1761014104047,0.2208,3948.6,3947.8,2.53304753]
[1761014104246,0.1264,3948.3,3947.9,3.243]
[1761014104428,0.4322,3948.2,3947.9,3.243]
[1761014104937,0.4322,3948.2,3947.3,0.4221]
[1761014104938,2.1602,3948.2,3946.5,2.95597788]
[1761014105141,0.1264,3947.9,3946.8,3.3694]
[1761014105446,0.21602,3948.1,3947.2,2.53343971]
[1761014105447,0.1264,3947.5,3947.2,2.53343971]
[1761014105747,0.1264,3947.5,3947.3,3.243]
[1761014105910,0.1264,3947.5,3946.8,0.1264]
[1761014105911,0.2208,3947.4,3946.8,0.1264]
[1761014106101,0.2208,3947.4,3946.8,3.243]
[1761014106306,0.1264,3947.1,3946.8,3.243]
[1761014106704,0.4322,3947.0,3946.8,3.243]
[1761014107834,0.4322,3947.0,3946.4,0.1264]
[1761014107835,0.4322,3947.0,3946.4,2.66035236]
[1761014108035,0.4322,3947.0,3946.5,3.243]
[1761014108236,0.4322,3947.0,3946.5,5.77687145]
[1761014108732,0.4322,3947.0,3946.6,3.242]
[1761014109510,0.96334149,3947.0,3946.6,3.242]
[1761014109701,0.1264,3947.1,3946.6,3.242]
[1761014109907,0.4322,3947.0,3946.6,3.242]
[1761014110108,0.1264,3947.1,3946.6,3.242]
[1761014110343,0.4322,3947.0,3946.6,3.242]
[1761014111041,0.1264,3947.1,3946.7,2.53376238]
[1761014111444,0.5586,3947.1,3946.6,3.242]
[1761014111816,0.5586,3947.1,3946.6,5.77581196]
[1761014112211,0.80934,3947.1,3946.6,5.77581196]
[1761014112412,0.5586,3947.1,3946.7,2.53371144]
[1761014113144,0.5586,3947.1,3946.6,5.77582189]
[1761014114947,0.1264,3947.1,3946.6,3.242]
[1761014115147,0.1264,3947.1,3946.8,2.53369039]
[1761014115353,0.1264,3947.1,3947.0,2.53356979]
[1761014115540,0.1264,3947.6,3947.1,2.53350561]
[1761014115723,0.1264,3947.6,3947.4,2.53330127]
[1761014115924,0.1264,3947.6,3947.5,3.242]
[1761014116549,0.1264,3947.6,3947.5,5.77524889]
[1761014116730,0.1264,3947.9,3947.6,2.53317981]
[1761014117158,0.1264,3947.9,3947.7,0.0253312]
[1761014117321,0.1264,3947.9,3947.8,5.77505638]
[1761014117730,0.1264,3947.9,3947.8,3.242]
[1761014118188,0.8142,3947.9,3947.8,3.242]
[1761014119276,0.8142,3947.9,3947.6,3.241]
[1761014119465,0.4707,3947.8,3947.6,3.241]
[1761014120357,0.1274,3947.9,3947.6,5.77415113]
[1761014120557,0.1274,3947.9,3947.7,2.53309578]
[1761014121078,0.1274,3947.9,3947.8,2.53305638]
[1761014121460,0.1274,3947.9,3947.7,2.53310374]
[1761014121881,0.1274,3947.9,3947.8,2.53305638]
[1761014122057,0.1274,3947.9,3947.6,3.241]
[1761014122258,0.1274,3947.9,3947.7,2.53308502]
[1761014122460,0.1274,3947.9,3947.8,2.53305638]
[1761014122461,0.5981,3947.9,3947.8,2.53305638]
[1761014122658,0.1274,3947.9,3947.8,2.53305638]
[1761014123367,0.8152,3947.9,3947.4,2.53328369]
[1761014123572,0.8152,3947.9,3947.6,2.53316809]
[1761014124693,0.1274,3947.9,3947.7,2.5331103]
[1761014125253,0.1274,3947.9,3947.8,3.241]
[1761014126587,0.1274,3947.9,3947.8,5.77405638]
[1761014127451,0.1274,3947.9,3947.8,3.241]
[1761014127882,0.1274,3947.9,3947.8,5.77405638]
[1761014128083,0.5981,3947.9,3947.8,3.241]
[1761014128284,0.1274,3947.9,3947.8,3.241]
[1761014128491,0.1274,3947.9,3947.8,5.77405638]
[1761014129277,0.001,3947.9,3947.8,6.64698621]
[1761014129589,0.001,3947.9,3947.8,7.06808621]
[1761014130284,0.001,3947.9,3947.8,6.64598621]
[1761014130664,0.001,3947.9,3947.8,11.27235518]
[1761014131278,0.001,3947.9,3947.8,11.69445518]
[1761014133992,0.001,3947.9,3947.8,19.50070415]
[1761014134188,0.39724062,3949.1,3949.0,2.53228665]
[1761014134497,0.39724062,3949.1,3949.0,10.39765562]
[1761014134797,0.04413916,3950.3,3949.1,3.03910253]
[1761014134999,0.2323,3950.6,3949.1,3.03910253]
[1761014135000,0.2323,3950.6,3950.2,2.53146386]
[1761014135203,0.2323,3950.6,3950.1,4.62636897]
[1761014135204,0.2323,3950.6,3950.3,3.239]
[1761014135406,0.6751,3950.6,3950.3,5.77045319]
[1761014135573,0.6751,3950.6,3950.3,3.239]
[1761014135772,0.4428,3950.5,3949.8,4.62636897]
[1761014135993,0.4428,3950.5,3949.9,5.77069898]
[1761014136195,0.4428,3950.5,3949.9,2.53169898]
[1761014136403,0.4428,3950.5,3950.0,5.77061731]
[1761014136570,0.4428,3950.5,3950.1,2.53156757]
[1761014136772,0.4428,3950.5,3950.0,3.239]
[1761014137906,0.39704852,3950.4,3950.0,3.239]
[1761014138796,0.2323,3950.6,3950.1,2.53157509]
[1761014138996,0.48692227,3950.9,3950.3,2.53144244]
[1761014139306,0.001,3950.9,3950.7,7.15755353]
[1761014139493,0.001,3950.9,3950.8,3.26431132]
[1761014139801,0.001,3950.9,3950.8,5.79544425]
[1761014140014,0.001,3950.9,3950.4,0.71831266]
[1761014140176,0.6761,3950.9,3950.5,3.238]
[1761014140589,0.4428,3950.8,3950.5,3.238]
[1761014141218,0.001,3950.9,3950.5,10.39567715]
[1761014141518,0.001,3950.9,3950.8,7.1575019]
[1761014141671,0.001,3950.9,3950.8,10.3955019]
[1761014142371,0.001,3950.9,3950.8,5.76913293]
[1761014142573,0.001,3950.9,3950.8,3.238]
[1761014142987,0.001,3950.9,3950.8,5.76913293]
[1761014143716,0.001,3950.9,3950.8,6.19123293]
[1761014144017,0.001,3950.9,3950.8,6.31763293]
[1761014144424,0.001,3950.9,3950.8,6.82451293]
[1761014144706,0.001,3950.9,3950.8,4.0557413]
[1761014144913,0.001,3950.9,3950.8,7.2937413]
[1761014145070,0.001,3950.9,3950.8,7.2927413]
[1761014145481,0.001,3950.9,3950.8,7.7148413]
[1761014145716,0.001,3950.9,3950.8,7.2927413]
[1761014146085,0.001,3950.9,3950.8,4.76160837]
[1761014146476,0.001,3950.9,3950.8,7.2927413]
[1761014147280,0.001,3950.9,3950.8,4.0557413]
[1761014147605,0.001,3950.9,3950.8,11.91911027]
[1761014149579,0.001,3950.9,3950.8,12.34121027]
[1761014151310,0.001,3950.9,3950.8,7.2927413]
[1761014151679,0.001,3950.9,3950.8,4.0557413]
[1761014151880,0.001,3950.9,3950.8,7.2917413]
[1761014153726,0.001,3950.9,3950.8,4.76060837]
[1761014153909,0.001,3950.9,3950.8,3.3624]
[1761014154088,0.6761,3950.9,3950.8,3.3624]
[1761014155418,0.6761,3950.9,3950.8,3.236]
[1761014157209,0.6761,3950.9,3950.5,0.1264]
[1761014157514,0.4428,3950.8,3950.6,3.236]
[1761014157684,0.4428,3950.8,3950.5,0.1264]
[1761014157888,0.1264,3950.7,3950.6,3.236]
[1761014158313,0.5692,3950.7,3950.6,3.236]
[1761014160913,0.5692,3950.7,3949.9,0.1264]
[1761014161115,0.1264,3950.4,3950.0,3.236]
[1761014161319,0.1264,3950.4,3949.9,0.1264]
[1761014161320,0.4515,3950.3,3949.9,0.1264]
[1761014161491,0.4515,3950.3,3949.4,4.62636897]
[1761014161492,0.4515,3950.3,3950.0,3.236]
[1761014162900,0.4515,3950.3,3949.6,0.1264]
[1761014163094,0.2362,3949.7,3949.6,2.53190196]
[1761014163296,0.2362,3949.7,3949.6,3.236]
[1761014163503,0.1264,3949.9,3949.7,2.53180996]
[1761014163802,0.5779,3949.9,3949.6,3.236]
[1761014164026,0.5779,3949.9,3949.6,5.76789969]
[1761014164333,0.4515,3949.8,3949.6,5.76789657]
[1761014164535,0.4515,3949.8,3949.6,3.236]
[1761014165819,0.4515,3949.8,3949.2,0.1264]
[1761014166008,0.4515,3949.8,3949.3,3.236]
[1761014166209,0.4515,3949.8,3948.5,5.04846897]
[1761014166210,0.1264,3949.6,3949.4,3.236]
[1761014166426,0.1264,3949.6,3948.6,3.236]
[1761014166427,0.23059,3949.6,3948.6,3.236]
[1761014166733,1.728,3949.4,3948.7,3.236]
[1761014167040,1.728,3949.4,3948.8,3.236]
[1761014167332,0.2362,3949.5,3949.1,2.53217256]
[1761014167532,0.6877,3949.9,3949.2,3.236]
[1761014167922,1.728,3949.7,3949.2,3.236]
[1761014168137,0.51836779,3949.7,3948.5,4.62636897]
[1761014168333,0.4515,3949.8,3948.5,4.62636897]
[1761014168334,0.4515,3949.6,3948.6,3.236]
[1761014168512,0.4515,3949.6,3949.0,2.53226437]
[1761014168713,0.2362,3949.9,3949.1,5.76821352]
[1761014169031,0.4515,3949.8,3949.2,3.236]
[1761014170338,0.2362,3949.9,3949.2,7.86236897]
[1761014170543,0.2362,3949.9,3949.2,11.19154343]
[1761014170838,0.2362,3949.9,3949.2,6.56511983]
[1761014171036,0.6877,3949.9,3949.2,3.32911983]
[1761014171236,0.6877,3949.9,3949.3,3.236]
[1761014171534,0.4515,3949.8,3949.3,5.76808656]
[1761014172504,0.4515,3949.8,3949.6,2.53190121]
[1761014172706,0.4515,3949.8,3949.7,3.236]
[1761014173341,0.2362,3949.9,3949.7,3.236]
[1761014173542,0.2362,3950.0,3949.8,3.236]
[1761014174541,1.77212507,3950.4,3949.9,2.5316464]
[1761014174542,0.04412507,3950.4,3949.9,2.5316464]
[1761014174742,0.2362,3950.7,3950.0,2.5315982]
[1761014175050,0.4515,3950.4,3950.1,3.236]
[1761014176148,0.4525,3950.4,3950.1,3.236]
[1761014176320,0.1264,3950.2,3950.1,3.236]
[1761014176644,0.1264,3950.2,3950.1,5.7675574]
[1761014176940,0.1274,3950.4,3950.2,2.53147315]
[1761014177241,0.001,3950.9,3950.8,2.53113293]
[1761014177453,0.001,3950.9,3950.8,10.3935019]
[1761014177608,0.39704884,3951.5,3951.3,2.53076117]
[1761014177812,0.39704884,3951.5,3951.4,3.236]
[1761014178323,0.39704884,3951.5,3951.4,5.76674859]
[1761014178627,0.39704884,3951.5,3951.4,4.54411931]
[1761014178628,0.84014884,3951.5,3951.4,4.54411931]
[1761014178817,0.39704884,3951.5,3951.2,2.53087514]
[1761014179013,0.39704884,3951.5,3951.1,4.62636897]
[1761014179014,0.4431,3951.4,3951.3,3.236]
[1761014182418,0.4431,3951.4,3951.3,5.76681264]
[1761014182757,0.2206,3951.9,3951.3,5.7667985]
[1761014182920,0.4431,3951.4,3951.3,5.7667985]
[1761014184162,0.4431,3951.4,3951.3,3.235]
[1761014184317,0.4431,3951.7,3951.3,5.76581264]
[1761014185051,0.2206,3951.9,3951.4,2.53074768]
[1761014185747,0.6637,3951.9,3951.4,2.53074768]
[1761014186153,0.4431,3951.8,3951.4,2.53074768]
[1761014186737,0.4431,3951.8,3951.4,2.53074859]
[1761014186933,0.2206,3952.3,3951.3,3.235]
[1761014187243,0.347,3951.4,3951.1,3.235]
[1761014187447,0.347,3951.4,3951.2,2.53087288]
[1761014187647,0.7901,3951.4,3951.2,2.53087288]
[1761014188523,0.4431,3951.3,3951.2,2.53087288]
[1761014188721,0.4431,3951.3,3950.7,2.65756775]
[1761014188965,0.2206,3950.8,3950.7,2.531197]
[1761014189161,0.2206,3950.8,3950.7,5.766197]
[1761014189358,0.1264,3951.0,3950.7,5.766197]
[1761014189560,0.5695,3951.0,3950.8,2.53111573]
[1761014189857,0.347,3951.4,3950.9,2.53106887]
[1761014190063,0.1264,3951.4,3951.0,5.7660048]
[1761014190279,0.1264,3951.4,3951.3,2.53081264]
[1761014190557,0.1264,3951.4,3951.3,5.76581264]
[1761014191160,0.1264,3951.7,3951.4,2.53069827]
[1761014191363,0.1264,3951.7,3951.6,2.5306205]
[1761014191828,0.1264,3951.7,3951.6,5.7656205]
[1761014192030,0.1264,3951.7,3951.6,3.235]
[1761014192224,0.5892,3951.7,3951.6,3.235]
[1761014192556,0.5892,3951.7,3951.4,3.235]
[1761014192726,0.4628,3951.6,3951.4,3.235]
[1761014192926,0.4628,3951.6,3951.0,2.65735135]
[1761014192927,0.4628,3951.6,3951.1,2.53094075]
[1761014193127,0.1264,3951.7,3951.4,2.53074659]
[1761014193773,0.1264,3951.9,3951.5,3.26030684]
[1761014193954,0.1264,3951.9,3951.8,2.53049243]
[1761014194157,0.1264,3951.9,3951.8,5.76549243]
[1761014194388,0.1264,3952.3,3951.8,3.6571]
[1761014194690,0.1264,3952.3,3952.2,2.53023632]
[1761014194874,0.1264,3952.3,3952.2,5.76523632]
[1761014195389,0.2245,3952.7,3952.4,2.53009089]
[1761014195685,0.4628,3952.6,3952.4,2.53009089]
[1761014195890,0.4628,3952.6,3952.3,2.53015806]
[1761014196073,0.4628,3952.6,3952.3,2.53015525]
[1761014196477,0.2245,3952.7,3952.2,3.235]
[1761014196678,0.2245,3952.7,3952.4,2.53006796]
[1761014196876,0.4628,3952.6,3952.2,5.76517876]
[1761014197189,0.4628,3952.6,3952.3,2.53015825]
[1761014197485,0.4628,3952.6,3951.4,1.26748209]
[1761014197687,0.4628,3952.6,3951.5,3.235]
[1761014197890,0.4628,3952.6,3951.8,2.53048488]
[1761014198096,0.4628,3952.6,3951.9,3.235]
[1761014198393,1.728,3952.4,3951.8,2.53047338]
[1761014198590,1.728,3952.4,3952.0,3.234]
[1761014198889,0.4628,3952.3,3951.9,3.234]
[1761014199063,0.4628,3952.3,3951.8,2.53043694]
[1761014199261,0.4628,3952.3,3951.9,3.234]
[1761014199674,0.4628,3952.3,3951.8,2.53043694]
[1761014199890,0.4628,3952.3,3951.9,3.234]
[1761014200196,0.4628,3952.3,3951.8,2.53043694]
[1761014200392,0.2245,3951.9,3951.7,2.53054675]
[1761014200594,0.6873,3951.9,3951.1,0.1572]
[1761014200815,0.6873,3951.9,3951.2,3.234]
[1761014200963,0.2245,3951.9,3951.5,2.53062927]
[1761014201164,0.4628,3951.8,3951.3,3.234]
[1761014201570,0.4628,3951.8,3951.5,2.53066666]
[1761014203406,0.4628,3951.8,3951.4,2.53072601]
[1761014203594,0.4628,3951.8,3949.2,0.7970169]
[1761014203595,0.4628,3951.8,3950.3,0.4221]
[1761014203800,0.4628,3951.8,3951.1,2.53089703]
[1761014203996,0.4628,3951.8,3951.2,5.76485741]
[1761014204315,0.4628,3951.8,3950.5,0.59681055]
[1761014204468,0.4628,3951.8,3951.0,2.53094463]
[1761014204666,0.4628,3951.8,3951.1,3.234]
[1761014204971,0.78456685,3951.8,3951.1,3.234]
[1761014205181,0.78456685,3951.8,3951.1,5.76493037]
[1761014205386,0.1264,3951.3,3951.1,5.76493037]
[1761014205977,0.5892,3951.3,3951.1,5.76493037]
[1761014206190,0.5892,3951.3,3951.1,3.234]
[1761014206385,0.4628,3951.2,3950.6,0.1264]
[1761014206593,0.4628,3951.2,3951.0,2.53095734]
[1761014206901,0.4628,3951.2,3951.1,5.76494075]
[1761014207705,0.4628,3951.2,3951.1,3.234]
[1761014208029,0.4628,3951.2,3950.4,0.002]
[1761014208030,30.0,3951.1,3950.4,0.002]
[1761014208168,21.35573514,3950.5,3950.4,0.002]
[1761014208371,20.08502586,3949.7,3949.6,0.002]
[1761014208577,1.728,3949.4,3948.1,0.257]
[1761014208877,1.728,3949.1,3948.1,0.257]
[1761014209094,2.85753115,3949.1,3948.1,0.257]
[1761014209296,0.53896956,3949.0,3948.1,0.257]
[1761014209510,1.66850071,3949.0,3948.1,0.257]
[1761014209678,0.2245,3948.9,3948.1,0.257]
[1761014209874,0.2245,3948.9,3947.9,2.53494079]
[1761014209875,0.6873,3948.9,3947.9,0.002]
[1761014210111,1.728,3948.7,3947.9,2.699]
[1761014210306,1.19909749,3948.6,3947.9,2.699]
[1761014210608,1.66189749,3948.6,3947.9,2.699]
[1761014210796,0.4628,3948.5,3947.9,2.699]
[1761014211896,13.754458,3948.4,3947.9,0.002]
[1761014212098,0.95396719,3948.4,3947.9,0.002]
[1761014212299,0.4628,3948.3,3947.9,0.002]
[1761014216094,2.53254469,3948.6,3947.9,0.002]
[1761014216594,0.4628,3948.5,3947.9,0.002]
[1761014217522,0.2245,3948.9,3947.9,0.002]
[1761014217523,0.04413678,3949.0,3948.4,0.1632]
[1761014217698,0.4628,3949.9,3948.5,3.72802607]
[1761014217898,0.1264,3949.2,3948.6,0.5801]
[1761014218100,0.1264,3949.2,3948.9,2.53234765]
[1761014218699,0.1264,3949.2,3949.0,3.25]
[1761014220623,0.1264,3949.2,3949.1,2.68942253]
[1761014220839,0.1264,3949.2,3949.1,3.15172253]
[1761014221928,0.1264,3949.2,3949.1,2.68942253]
[1761014224600,0.1264,3949.2,3949.1,2.71474475]
[1761014224804,11.650941,3949.1,3948.2,2.53279831]
[1761014225044,0.4493,3949.0,3948.3,3.247]
[1761014225340,0.4493,3949.0,3948.2,2.53279831]
[1761014225540,0.4493,3949.0,3948.4,3.247]
[1761014225725,0.4493,3949.0,3948.5,2.53254786]
[1761014226238,0.4493,3949.0,3948.4,5.77965868]
[1761014226407,0.4493,3949.0,3948.4,3.247]
[1761014226923,0.4493,3949.0,3948.4,5.7796223]
[1761014227839,0.4493,3949.0,3948.5,3.246]
[1761014228042,0.4493,3949.0,3948.5,5.77859764]
[1761014228209,0.4493,3949.0,3948.6,2.53254237]
[1761014228840,0.4493,3949.3,3948.5,5.77858755]
[1761014229338,0.4493,3949.3,3948.5,3.246]
[1761014229728,0.4493,3949.3,3948.5,5.77859164]
[1761014230241,0.4493,3949.3,3948.5,3.246]
[1761014230432,0.4493,3949.3,3948.8,2.53237842]
[1761014230621,0.49343215,3949.6,3948.8,2.53237842]
[1761014230819,0.9922738,3949.6,3948.8,2.53237842]
[1761014231024,0.94814165,3949.6,3948.8,2.53237842]
[1761014231363,0.49884165,3949.6,3949.0,2.53227724]
[1761014231522,0.2352,3949.7,3948.9,5.7753381]
[1761014231843,0.4493,3949.6,3948.9,3.243]
[1761014232052,0.4493,3949.6,3948.9,5.7753428]
[1761014232354,0.4493,3949.6,3948.6,2.53248882]
[1761014232549,0.4493,3949.6,3948.7,5.77546549]
[1761014232753,0.4493,3949.6,3948.0,2.53290915]
[1761014232754,1.728,3949.4,3948.4,2.53265953]
[1761014232917,1.728,3949.4,3948.5,3.243]
[1761014233113,0.4493,3949.3,3948.4,0.002]
[1761014233311,0.4493,3949.3,3948.5,1.835]
[1761014233644,0.4493,3949.3,3948.7,2.53243319]
[1761014234023,0.4493,3949.3,3948.5,4.36756991]